[Event "*** Titled Tuesday Blitz"]
[Site "Chess.com"]
[Date "2020.11.10"]
[Round "5"]
[White "szachuspl"]
[Black "fabianvivasz"]
[Result "0-1"]
[WhiteElo "2526"]
[BlackElo "2378"]
[TimeControl "180+1"]
[EndTime "11:00:11 PST"]
[Termination "fabianvivasz won by resignation"]

1. d4 {[%clk 0:03:00.9]} 1... Nf6 {[%clk 0:02:59.6]} 2. c4 {[%clk 0:03:00.2]}
2... g6 {[%clk 0:02:57.9]} 3. Nc3 {[%clk 0:03:00.2]} 3... d5 {[%clk 0:02:58]} 4.
Nf3 {[%clk 0:03:00.3]} 4... Bg7 {[%clk 0:02:52.7]} 5. h4 {[%clk 0:03:00.5]} 5...
dxc4 {[%clk 0:02:50.3]} 6. e4 {[%clk 0:02:55.4]} 6... c5 {[%clk 0:02:50.3]} 7.
e5 {[%clk 0:02:52.7]} 7... Ng4 {[%clk 0:02:38.1]} 8. Bxc4 {[%clk 0:02:25.6]}
8... cxd4 {[%clk 0:02:35.9]} 9. Bb5+ {[%clk 0:02:23.7]} 9... Bd7 {[%clk
0:02:23.1]} 10. Qxd4 {[%clk 0:02:12.5]} 10... Bxb5 {[%clk 0:01:55.3]} 11. Qxg4
{[%clk 0:02:06.9]} 11... Ba6 {[%clk 0:01:50.1]} 12. Be3 {[%clk 0:02:01.7]} 12...
O-O {[%clk 0:01:43.5]} 13. h5 {[%clk 0:02:01.7]} 13... Qd7 {[%clk 0:01:22.4]}
14. e6 {[%clk 0:01:58.6]} 14... Qxe6 {[%clk 0:01:21.7]} 15. Qxe6 {[%clk
0:01:56.1]} 15... fxe6 {[%clk 0:01:22.6]} 16. hxg6 {[%clk 0:01:54.9]} 16... hxg6
{[%clk 0:01:23.4]} 17. Ng5 {[%clk 0:01:55]} 17... e5 {[%clk 0:01:04.9]} 18. Nd5
{[%clk 0:01:50]} 18... Nc6 {[%clk 0:01:03.1]} 19. Rc1 {[%clk 0:01:47.7]} 19...
Rfd8 {[%clk 0:00:55.2]} 20. Nc7 {[%clk 0:01:34.9]} 20... Nb4 {[%clk 0:00:47.4]}
21. Nxa6 {[%clk 0:01:20.7]} 21... Nd3+ {[%clk 0:00:45]} 22. Ke2 {[%clk 0:01:21]}
22... Nxc1+ {[%clk 0:00:44.6]} 23. Rxc1 {[%clk 0:01:21.7]} 23... bxa6 {[%clk
0:00:45.1]} 24. Rc7 {[%clk 0:01:20]} 24... Bf6 {[%clk 0:00:44.7]} 25. Ne4 {[%clk
0:01:17.1]} 25... Rdc8 {[%clk 0:00:43.6]} 26. Rc3 {[%clk 0:01:05.8]} 26... Rxc3
{[%clk 0:00:39.7]} 27. bxc3 {[%clk 0:01:05]} 27... Rb8 {[%clk 0:00:34.1]} 28.
Kd3 {[%clk 0:01:04.9]} 28... Rb2 {[%clk 0:00:30.7]} 29. a3 {[%clk 0:01:05.4]}
29... Ra2 {[%clk 0:00:29.2]} 30. Bc5 {[%clk 0:01:04.3]} 30... Kf7 {[%clk
0:00:24.9]} 31. g4 {[%clk 0:01:02.5]} 31... Bh4 {[%clk 0:00:20.4]} 32. Kc4
{[%clk 0:01:01.7]} 32... Ke6 {[%clk 0:00:18.9]} 33. f3 {[%clk 0:00:48.4]} 33...
Ra1 {[%clk 0:00:17]} 34. Kb3 {[%clk 0:00:46.3]} 34... Rf1 {[%clk 0:00:17]} 35.
Nd2 {[%clk 0:00:43.1]} 35... Rd1 {[%clk 0:00:17.2]} 36. Kc2 {[%clk 0:00:43.3]}
36... Ra1 {[%clk 0:00:16.4]} 37. Kb2 {[%clk 0:00:42.9]} 37... Rh1 {[%clk
0:00:16.4]} 38. Bxa7 {[%clk 0:00:42.3]} 38... Kd5 {[%clk 0:00:15.2]} 39. Kc2
{[%clk 0:00:39.6]} 39... Rh2 {[%clk 0:00:14.5]} 40. Kd3 {[%clk 0:00:39.5]} 40...
Be1 {[%clk 0:00:13.1]} 41. Ne4 {[%clk 0:00:39.8]} 41... Ra2 {[%clk 0:00:12]} 42.
Bc5 {[%clk 0:00:40]} 42... a5 {[%clk 0:00:09]} 43. Bxe7 {[%clk 0:00:39.3]} 43...
a4 {[%clk 0:00:07.4]} 44. c4+ {[%clk 0:00:39.4]} 44... Kc6 {[%clk 0:00:06.6]}
45. g5 {[%clk 0:00:32.8]} 45... Rb2 {[%clk 0:00:04.9]} 46. Nf6 {[%clk 0:00:28]}
46... Rb3+ {[%clk 0:00:05]} 47. Ke4 {[%clk 0:00:27.7]} 47... Bc3 {[%clk
0:00:03.4]} 48. Nd5 {[%clk 0:00:21]} 48... Bb2 {[%clk 0:00:03.7]} 49. Nb4+
{[%clk 0:00:11]} 49... Kd7 {[%clk 0:00:04]} 50. Bf6 {[%clk 0:00:09.4]} 50...
Bxa3 {[%clk 0:00:04.5]} 51. Nd3 {[%clk 0:00:09.1]} 51... Bd6 {[%clk 0:00:02.9]}
52. c5 {[%clk 0:00:09.3]} 52... Bc7 {[%clk 0:00:02.9]} 53. Bxe5 {[%clk
0:00:08.1]} 53... Rxd3 {[%clk 0:00:02.4]} 54. Bxc7 {[%clk 0:00:06.2]} 54... Rd1
{[%clk 0:00:01.2]} 55. Be5 {[%clk 0:00:06]} 55... a3 {[%clk 0:00:01.5]} 56. f4
{[%clk 0:00:05.9]} 56... a2 {[%clk 0:00:02]} 57. f5 {[%clk 0:00:06.4]} 57...
Re1+ {[%clk 0:00:02.5]} 58. Kf4 {[%clk 0:00:05.9]} 58... Rxe5 {[%clk 0:00:03.4]}
59. Kxe5 {[%clk 0:00:06.8]} 59... a1=Q+ {[%clk 0:00:03.9]} 60. Kf4 {[%clk
0:00:07.3]} 60... gxf5 {[%clk 0:00:04.6]} 61. g6 {[%clk 0:00:07.1]} 61... Qb1
{[%clk 0:00:05.5]} 62. g7 {[%clk 0:00:06.8]} 62... Qg1 {[%clk 0:00:06.1]} 63.
c6+ {[%clk 0:00:06.3]} 63... Kd6 {[%clk 0:00:05.9]} 64. g8=Q {[%clk 0:00:07.2]}
64... Qxg8 {[%clk 0:00:05.6]} 65. c7 {[%clk 0:00:08.1]} 65... Kxc7 {[%clk
0:00:05.8]} 66. Kxf5 {[%clk 0:00:08]} 66... Kd6 {[%clk 0:00:06.4]} 0-1

[Event "*** Titled Tuesday Blitz"]
[Site "Chess.com"]
[Date "2020.11.10"]
[Round "5"]
[White "Predatoru"]
[Black "giantslayer83"]
[Result "0-1"]
[WhiteElo "2502"]
[BlackElo "2711"]
[TimeControl "180+1"]
[EndTime "11:00:13 PST"]
[Termination "giantslayer83 won on time"]

1. d4 {[%clk 0:03:00.9]} 1... Nf6 {[%clk 0:02:59.7]} 2. c4 {[%clk 0:03:01.4]}
2... e6 {[%clk 0:03:00]} 3. Nc3 {[%clk 0:03:01.9]} 3... Bb4 {[%clk 0:02:59.9]}
4. Qc2 {[%clk 0:03:02.5]} 4... d5 {[%clk 0:02:58.4]} 5. cxd5 {[%clk 0:03:01.8]}
5... exd5 {[%clk 0:02:52.2]} 6. Bg5 {[%clk 0:03:01.3]} 6... O-O {[%clk
0:02:51.5]} 7. e3 {[%clk 0:03:00.7]} 7... c6 {[%clk 0:02:48.6]} 8. Bd3 {[%clk
0:03:00]} 8... h6 {[%clk 0:02:48.6]} 9. Bh4 {[%clk 0:02:58.3]} 9... Re8 {[%clk
0:02:44.6]} 10. Ne2 {[%clk 0:02:57.6]} 10... Nbd7 {[%clk 0:02:39.7]} 11. O-O
{[%clk 0:02:56]} 11... Bd6 {[%clk 0:02:39.5]} 12. Bg3 {[%clk 0:02:48.5]} 12...
Nf8 {[%clk 0:02:38.5]} 13. Rae1 {[%clk 0:02:45.4]} 13... N8h7 {[%clk 0:02:17.5]}
14. Bxd6 {[%clk 0:02:36.9]} 14... Qxd6 {[%clk 0:02:18.4]} 15. Ng3 {[%clk
0:02:37.3]} 15... g6 {[%clk 0:01:58.3]} 16. f3 {[%clk 0:02:12.2]} 16... h5
{[%clk 0:01:56.7]} 17. Qf2 {[%clk 0:02:00.8]} 17... h4 {[%clk 0:01:54.8]} 18.
Nge2 {[%clk 0:02:00.6]} 18... h3 {[%clk 0:01:54.3]} 19. g3 {[%clk 0:01:59]}
19... Kg7 {[%clk 0:01:52.6]} 20. g4 {[%clk 0:01:48.6]} 20... Ng5 {[%clk
0:01:48.7]} 21. Ng3 {[%clk 0:01:45.6]} 21... Re7 {[%clk 0:01:29.5]} 22. e4
{[%clk 0:00:59]} 22... dxe4 {[%clk 0:01:25.7]} 23. Ncxe4 {[%clk 0:00:57.7]}
23... Ngxe4 {[%clk 0:00:38.9]} 24. Nxe4 {[%clk 0:00:57.1]} 24... Qf4 {[%clk
0:00:38.1]} 25. Ng3 {[%clk 0:00:40]} 25... Rxe1 {[%clk 0:00:29.3]} 26. Rxe1
{[%clk 0:00:40.9]} 26... Be6 {[%clk 0:00:29.9]} 27. b3 {[%clk 0:00:29.1]} 27...
Rd8 {[%clk 0:00:28.5]} 28. Ne2 {[%clk 0:00:27.2]} 28... Qd2 {[%clk 0:00:28.2]}
29. Bc4 {[%clk 0:00:17.8]} 29... Bxc4 {[%clk 0:00:27]} 30. bxc4 {[%clk
0:00:18.7]} 30... Qxa2 {[%clk 0:00:27.6]} 31. Rc1 {[%clk 0:00:18.5]} 31... Re8
{[%clk 0:00:25.4]} 32. Kf1 {[%clk 0:00:18.5]} 32... Qd2 {[%clk 0:00:24.6]} 33.
Re1 {[%clk 0:00:16.7]} 33... Qd3 {[%clk 0:00:24.2]} 34. Rc1 {[%clk 0:00:14.5]}
34... Re3 {[%clk 0:00:21.6]} 35. Rc3 {[%clk 0:00:12]} 35... Qd1+ {[%clk
0:00:07.5]} 36. Qe1 {[%clk 0:00:12.3]} 36... Qxe1+ {[%clk 0:00:05.2]} 37. Kxe1
{[%clk 0:00:13.2]} 37... Rxc3 {[%clk 0:00:05.3]} 38. Nxc3 {[%clk 0:00:14.1]}
38... a5 {[%clk 0:00:05.4]} 39. Kd2 {[%clk 0:00:13.3]} 39... g5 {[%clk
0:00:04.8]} 40. Na4 {[%clk 0:00:10.4]} 40... Nd7 {[%clk 0:00:04.7]} 41. Nc3
{[%clk 0:00:09.2]} 41... Kf6 {[%clk 0:00:04.4]} 42. Ne4+ {[%clk 0:00:09.3]}
42... Kg6 {[%clk 0:00:04.7]} 43. Nd6 {[%clk 0:00:09.1]} 43... b6 {[%clk
0:00:04.8]} 44. Kc3 {[%clk 0:00:09.5]} 44... f6 {[%clk 0:00:04.5]} 45. Ne4
{[%clk 0:00:07.6]} 45... f5 {[%clk 0:00:04.2]} 46. Nf2 {[%clk 0:00:07.2]} 46...
fxg4 {[%clk 0:00:03.3]} 47. fxg4 {[%clk 0:00:08.1]} 47... Nf6 {[%clk 0:00:03.6]}
48. Kd3 {[%clk 0:00:03.5]} 48... a4 {[%clk 0:00:03.7]} 49. Kc3 {[%clk
0:00:03.1]} 49... b5 {[%clk 0:00:04]} 50. cxb5 {[%clk 0:00:03.5]} 50... cxb5
{[%clk 0:00:04.9]} 51. Kb4 {[%clk 0:00:04.1]} 51... Nd5+ {[%clk 0:00:05]} 52.
Ka3 {[%clk 0:00:02.1]} 52... Ne3 {[%clk 0:00:05.2]} 53. Nxh3 {[%clk 0:00:02.3]}
53... Nxg4 {[%clk 0:00:05]} 54. Kb4 {[%clk 0:00:02.7]} 54... Kf5 {[%clk
0:00:05.1]} 55. d5 {[%clk 0:00:02.4]} 55... Nf6 {[%clk 0:00:01.8]} 56. d6 {[%clk
0:00:02.4]} 56... g4 {[%clk 0:00:02.2]} 57. Nf2 {[%clk 0:00:02.8]} 57... Ke6
{[%clk 0:00:01.9]} 58. Kxb5 {[%clk 0:00:02]} 58... a3 {[%clk 0:00:02.1]} 0-1

[Event "*** Titled Tuesday Blitz"]
[Site "Chess.com"]
[Date "2020.11.10"]
[Round "5"]
[White "ambaixador"]
[Black "GregShahade"]
[Result "1/2-1/2"]
[WhiteElo "2461"]
[BlackElo "2691"]
[TimeControl "180+1"]
[EndTime "11:00:13 PST"]
[Termination "Game drawn - insufficient material"]

1. Nf3 {[%clk 0:03:00.9]} 1... Nf6 {[%clk 0:02:59.7]} 2. c4 {[%clk 0:03:00.9]}
2... g6 {[%clk 0:02:59.8]} 3. g3 {[%clk 0:03:01.2]} 3... Bg7 {[%clk 0:02:59.2]}
4. Bg2 {[%clk 0:03:01.8]} 4... d5 {[%clk 0:02:58.1]} 5. cxd5 {[%clk 0:02:59.5]}
5... Nxd5 {[%clk 0:02:59]} 6. O-O {[%clk 0:02:59.9]} 6... Nb6 {[%clk 0:02:56.7]}
7. Nc3 {[%clk 0:02:58.3]} 7... Nc6 {[%clk 0:02:56.1]} 8. b3 {[%clk 0:02:55.2]}
8... O-O {[%clk 0:02:55.4]} 9. Bb2 {[%clk 0:02:55]} 9... a5 {[%clk 0:02:56.1]}
10. a3 {[%clk 0:02:52.4]} 10... e5 {[%clk 0:02:51.6]} 11. d3 {[%clk 0:02:50.1]}
11... Nd4 {[%clk 0:02:43.1]} 12. Rc1 {[%clk 0:02:44]} 12... c6 {[%clk
0:02:33.6]} 13. Re1 {[%clk 0:02:36.1]} 13... Be6 {[%clk 0:02:26.8]} 14. Nd2
{[%clk 0:02:35.9]} 14... Nd5 {[%clk 0:02:19.5]} 15. Nce4 {[%clk 0:02:32.2]}
15... Bg4 {[%clk 0:02:04.3]} 16. h3 {[%clk 0:02:25.3]} 16... Bf5 {[%clk
0:02:04.5]} 17. Nc4 {[%clk 0:02:06.8]} 17... Bc8 {[%clk 0:01:26]} 18. e3 {[%clk
0:01:42.1]} 18... Ne6 {[%clk 0:01:14.6]} 19. Bxe5 {[%clk 0:01:40.9]} 19... Bxe5
{[%clk 0:01:00.3]} 20. Nxe5 {[%clk 0:01:41.8]} 20... Qe7 {[%clk 0:00:44.1]} 21.
Nc4 {[%clk 0:01:02.4]} 21... b5 {[%clk 0:00:30.1]} 22. Ne5 {[%clk 0:01:02.1]}
22... Qxa3 {[%clk 0:00:24.9]} 23. Nxc6 {[%clk 0:01:01.5]} 23... Nb4 {[%clk
0:00:22.2]} 24. Nxb4 {[%clk 0:00:44]} 24... Qxb4 {[%clk 0:00:21]} 25. Nf6+
{[%clk 0:00:43]} 25... Kg7 {[%clk 0:00:20.5]} 26. Nd5 {[%clk 0:00:34.8]} 26...
Qd6 {[%clk 0:00:20.7]} 27. Qd2 {[%clk 0:00:29.5]} 27... Bb7 {[%clk 0:00:20.9]}
28. Qb2+ {[%clk 0:00:29.2]} 28... f6 {[%clk 0:00:21.3]} 29. Nf4 {[%clk
0:00:22.5]} 29... Bxg2 {[%clk 0:00:20.1]} 30. Nxe6+ {[%clk 0:00:20.3]} 30...
Qxe6 {[%clk 0:00:21]} 31. Kxg2 {[%clk 0:00:21]} 31... Rf7 {[%clk 0:00:21.5]} 32.
Rc5 {[%clk 0:00:19.6]} 32... Rb7 {[%clk 0:00:19.3]} 33. Rec1 {[%clk 0:00:19.5]}
33... Qd6 {[%clk 0:00:19.7]} 34. d4 {[%clk 0:00:19.5]} 34... a4 {[%clk
0:00:19.7]} 35. bxa4 {[%clk 0:00:18.9]} 35... b4 {[%clk 0:00:12.5]} 36. a5
{[%clk 0:00:18.4]} 36... b3 {[%clk 0:00:11.5]} 37. R1c3 {[%clk 0:00:18.5]} 37...
Rab8 {[%clk 0:00:10.6]} 38. R3c4 {[%clk 0:00:16]} 38... h5 {[%clk 0:00:10.6]}
39. h4 {[%clk 0:00:15.7]} 39... Qe6 {[%clk 0:00:10.4]} 40. Rc3 {[%clk
0:00:13.8]} 40... Qe4+ {[%clk 0:00:09.8]} 41. f3 {[%clk 0:00:14.2]} 41... Qe6
{[%clk 0:00:09.5]} 42. Rc6 {[%clk 0:00:14.1]} 42... Qd5 {[%clk 0:00:09.2]} 43.
R3c5 {[%clk 0:00:14.2]} 43... Qf7 {[%clk 0:00:08.9]} 44. a6 {[%clk 0:00:14.3]}
44... Rb4 {[%clk 0:00:08.7]} 45. Rc7 {[%clk 0:00:14.2]} 45... Ra4 {[%clk
0:00:08.3]} 46. Rxf7+ {[%clk 0:00:14.1]} 46... Kxf7 {[%clk 0:00:09.2]} 47. Rc7+
{[%clk 0:00:14.1]} 47... Ke6 {[%clk 0:00:08.9]} 48. Rb7 {[%clk 0:00:14.4]} 48...
Ra2 {[%clk 0:00:06.5]} 49. Rxb8 {[%clk 0:00:09.6]} 49... Rxb2+ {[%clk
0:00:06.8]} 50. Kh3 {[%clk 0:00:09.6]} 50... Ra2 {[%clk 0:00:05.3]} 51. Rb6+
{[%clk 0:00:09.2]} 51... Kd5 {[%clk 0:00:04.2]} 52. Rxb3 {[%clk 0:00:10.1]}
52... Rxa6 {[%clk 0:00:04.2]} 53. Rc3 {[%clk 0:00:10.2]} 53... f5 {[%clk
0:00:03.8]} 54. Rc5+ {[%clk 0:00:09.9]} 54... Kd6 {[%clk 0:00:03.6]} 55. Rc8
{[%clk 0:00:10]} 55... Ra3 {[%clk 0:00:04]} 56. Re8 {[%clk 0:00:09.1]} 56... Rd3
{[%clk 0:00:03.8]} 57. g4 {[%clk 0:00:08.3]} 57... hxg4+ {[%clk 0:00:03.2]} 58.
fxg4 {[%clk 0:00:09.2]} 58... f4 {[%clk 0:00:03.9]} 59. h5 {[%clk 0:00:09.3]}
59... gxh5 {[%clk 0:00:03.7]} 60. gxh5 {[%clk 0:00:10.2]} 60... fxe3 {[%clk
0:00:04.2]} 61. h6 {[%clk 0:00:10.3]} 61... e2+ {[%clk 0:00:03.7]} 62. Kg2
{[%clk 0:00:10.2]} 62... Rxd4 {[%clk 0:00:04.2]} 63. h7 {[%clk 0:00:10.4]} 63...
Rh4 {[%clk 0:00:03.3]} 64. Kf2 {[%clk 0:00:10.1]} 64... Rh2+ {[%clk 0:00:03]}
65. Ke1 {[%clk 0:00:08.8]} 65... Rxh7 {[%clk 0:00:03.9]} 66. Rxe2 {[%clk
0:00:09]} 66... Re7 {[%clk 0:00:04.7]} 67. Rxe7 {[%clk 0:00:08.9]} 67... Kxe7
{[%clk 0:00:05.6]} 1/2-1/2

[Event "*** Titled Tuesday Blitz"]
[Site "Chess.com"]
[Date "2020.11.10"]
[Round "5"]
[White "SharapovEvgeny"]
[Black "ChessWarrior3"]
[Result "1-0"]
[WhiteElo "2468"]
[BlackElo "2072"]
[TimeControl "180+1"]
[EndTime "11:00:13 PST"]
[Termination "SharapovEvgeny won by checkmate"]

1. c4 {[%clk 0:02:58.9]} 1... c5 {[%clk 0:02:59.5]} 2. Nc3 {[%clk 0:02:58.7]}
2... Nc6 {[%clk 0:02:59.1]} 3. Nf3 {[%clk 0:02:58]} 3... e5 {[%clk 0:02:56.1]}
4. g3 {[%clk 0:02:55.8]} 4... g6 {[%clk 0:02:55.5]} 5. Bg2 {[%clk 0:02:55.5]}
5... Bg7 {[%clk 0:02:55.1]} 6. a3 {[%clk 0:02:54.6]} 6... d6 {[%clk 0:02:40.8]}
7. O-O {[%clk 0:02:51]} 7... Bf5 {[%clk 0:02:28.3]} 8. d3 {[%clk 0:02:47.1]}
8... Qd7 {[%clk 0:02:27.6]} 9. Ne1 {[%clk 0:02:43.1]} 9... Bh3 {[%clk 0:02:26]}
10. Nc2 {[%clk 0:02:42.2]} 10... h5 {[%clk 0:02:22.9]} 11. e3 {[%clk 0:02:09.8]}
11... h4 {[%clk 0:02:16.2]} 12. Bxh3 {[%clk 0:02:09.4]} 12... Qxh3 {[%clk
0:02:13.1]} 13. Qf3 {[%clk 0:02:09.2]} 13... Nf6 {[%clk 0:01:30.5]} 14. Qg2
{[%clk 0:02:08.1]} 14... hxg3 {[%clk 0:01:23.8]} 15. fxg3 {[%clk 0:02:05.2]}
15... Qxg2+ {[%clk 0:01:18.5]} 16. Kxg2 {[%clk 0:02:04.3]} 16... a6 {[%clk
0:00:51.1]} 17. e4 {[%clk 0:02:02.7]} 17... Nd4 {[%clk 0:00:46.8]} 18. Nxd4
{[%clk 0:02:01.5]} 18... cxd4 {[%clk 0:00:47.7]} 19. Nd5 {[%clk 0:02:01.1]}
19... Nxd5 {[%clk 0:00:45.8]} 20. cxd5 {[%clk 0:02:00.2]} 20... Rc8 {[%clk
0:00:45.7]} 21. h4 {[%clk 0:01:39.9]} 21... Rc2+ {[%clk 0:00:40.2]} 22. Rf2
{[%clk 0:01:39.2]} 22... Rxf2+ {[%clk 0:00:39.2]} 23. Kxf2 {[%clk 0:01:36.1]}
23... f5 {[%clk 0:00:38.6]} 24. Bg5 {[%clk 0:01:29.4]} 24... fxe4 {[%clk
0:00:36.3]} 25. dxe4 {[%clk 0:01:29.1]} 25... Bh6 {[%clk 0:00:33.9]} 26. Bxh6
{[%clk 0:01:25.6]} 26... Rxh6 {[%clk 0:00:34.8]} 27. Rc1 {[%clk 0:01:21.2]}
27... Kd7 {[%clk 0:00:34]} 28. Ke2 {[%clk 0:01:12.9]} 28... g5 {[%clk
0:00:20.1]} 29. hxg5 {[%clk 0:01:05.9]} 29... Rg6 {[%clk 0:00:20.1]} 30. Rh1
{[%clk 0:01:01.3]} 30... Rxg5 {[%clk 0:00:20]} 31. Rh7+ {[%clk 0:00:59.7]} 31...
Kc8 {[%clk 0:00:19.7]} 32. Kf3 {[%clk 0:00:56.8]} 32... Rg6 {[%clk 0:00:19]} 33.
Rf7 {[%clk 0:00:49]} 33... Rg8 {[%clk 0:00:17.9]} 34. g4 {[%clk 0:00:48.2]}
34... Kb8 {[%clk 0:00:18.1]} 35. Rf6 {[%clk 0:00:44.7]} 35... Kc7 {[%clk
0:00:17.3]} 36. Rf7+ {[%clk 0:00:43.3]} 36... Kb6 {[%clk 0:00:17.3]} 37. b4
{[%clk 0:00:37.7]} 37... Kb5 {[%clk 0:00:12.9]} 38. Rxb7+ {[%clk 0:00:36.1]}
38... Ka4 {[%clk 0:00:13]} 39. Rb6 {[%clk 0:00:35]} 39... Kxa3 {[%clk
0:00:12.6]} 40. Rxa6+ {[%clk 0:00:33]} 40... Kxb4 {[%clk 0:00:12.7]} 41. Rxd6
{[%clk 0:00:32.9]} 41... Kc4 {[%clk 0:00:13.2]} 42. Rc6+ {[%clk 0:00:32.3]}
42... Kd3 {[%clk 0:00:13]} 43. d6 {[%clk 0:00:32.1]} 43... Rf8+ {[%clk
0:00:12.4]} 44. Kg3 {[%clk 0:00:30.8]} 44... Kxe4 {[%clk 0:00:12.6]} 45. d7
{[%clk 0:00:29]} 45... Rd8 {[%clk 0:00:11.8]} 46. Rd6 {[%clk 0:00:28.9]} 46...
Ke3 {[%clk 0:00:11.9]} 47. g5 {[%clk 0:00:26.3]} 47... d3 {[%clk 0:00:12.1]} 48.
g6 {[%clk 0:00:26]} 48... d2 {[%clk 0:00:11.5]} 49. Kg4 {[%clk 0:00:22.4]} 49...
e4 {[%clk 0:00:10.9]} 50. Kf5 {[%clk 0:00:22]} 50... Kf3 {[%clk 0:00:03.3]} 51.
Rxd2 {[%clk 0:00:19.5]} 51... e3 {[%clk 0:00:03.8]} 52. Rd3 {[%clk 0:00:18.9]}
52... Ke2 {[%clk 0:00:03.8]} 53. Rd6 {[%clk 0:00:17.6]} 53... Kf2 {[%clk
0:00:04.1]} 54. g7 {[%clk 0:00:16.6]} 54... e2 {[%clk 0:00:04.3]} 55. Re6 {[%clk
0:00:16.7]} 55... Rxd7 {[%clk 0:00:02.8]} 56. g8=Q {[%clk 0:00:16.3]} 56... Rd5+
{[%clk 0:00:03.1]} 57. Kf6 {[%clk 0:00:15.9]} 57... Rd4 {[%clk 0:00:03.2]} 58.
Re5 {[%clk 0:00:13.1]} 58... Rf4+ {[%clk 0:00:03]} 59. Ke6 {[%clk 0:00:12.9]}
59... e1=Q {[%clk 0:00:02.9]} 60. Rxe1 {[%clk 0:00:12.3]} 60... Kxe1 {[%clk
0:00:03.8]} 61. Ke5 {[%clk 0:00:12.2]} 61... Rf2 {[%clk 0:00:03.7]} 62. Qg3
{[%clk 0:00:11.1]} 62... Kf1 {[%clk 0:00:03]} 63. Ke4 {[%clk 0:00:10]} 63... Ke1
{[%clk 0:00:02.1]} 64. Ke3 {[%clk 0:00:09]} 64... Kd1 {[%clk 0:00:02.7]} 65.
Qxf2 {[%clk 0:00:08.8]} 65... Kc1 {[%clk 0:00:03.6]} 66. Kd3 {[%clk 0:00:08.9]}
66... Kb1 {[%clk 0:00:04.2]} 67. Kc3 {[%clk 0:00:09.1]} 67... Ka1 {[%clk
0:00:05.1]} 68. Qb2# {[%clk 0:00:08.3]} 1-0

[Event "*** Titled Tuesday Blitz"]
[Site "Chess.com"]
[Date "2020.11.10"]
[Round "5"]
[White "JozefKneht"]
[Black "NewBornNow"]
[Result "0-1"]
[WhiteElo "2513"]
[BlackElo "2650"]
[TimeControl "180+1"]
[EndTime "11:00:15 PST"]
[Termination "NewBornNow won on time"]

1. e4 {[%clk 0:02:55.1]} 1... c5 {[%clk 0:02:58.7]} 2. Nf3 {[%clk 0:02:54.6]}
2... d6 {[%clk 0:02:58.5]} 3. d4 {[%clk 0:02:55.3]} 3... cxd4 {[%clk 0:02:58.3]}
4. Nxd4 {[%clk 0:02:56.2]} 4... Nf6 {[%clk 0:02:58.6]} 5. Nc3 {[%clk 0:02:56.7]}
5... a6 {[%clk 0:02:58.8]} 6. Bg5 {[%clk 0:02:57]} 6... e6 {[%clk 0:02:56.1]} 7.
f4 {[%clk 0:02:57.4]} 7... Nc6 {[%clk 0:02:56.5]} 8. e5 {[%clk 0:02:55.5]} 8...
h6 {[%clk 0:02:54]} 9. Bh4 {[%clk 0:02:53.5]} 9... g5 {[%clk 0:02:54]} 10. fxg5
{[%clk 0:02:53.3]} 10... Nd5 {[%clk 0:02:53.9]} 11. Nxd5 {[%clk 0:02:53.9]}
11... exd5 {[%clk 0:02:53.7]} 12. exd6 {[%clk 0:02:48]} 12... Bxd6 {[%clk
0:02:52.8]} 13. Qe2+ {[%clk 0:02:34.9]} 13... Kd7 {[%clk 0:02:52.4]} 14. O-O-O
{[%clk 0:02:13.4]} 14... hxg5 {[%clk 0:02:51.7]} 15. Bg3 {[%clk 0:02:12.4]}
15... Bxg3 {[%clk 0:02:40.3]} 16. Qg4+ {[%clk 0:02:11.6]} 16... Kc7 {[%clk
0:02:40.2]} 17. Qxg3+ {[%clk 0:02:11.2]} 17... Qd6 {[%clk 0:02:38.8]} 18. Qxg5
{[%clk 0:02:06.6]} 18... Nxd4 {[%clk 0:02:33.7]} 19. Rxd4 {[%clk 0:02:04.5]}
19... Be6 {[%clk 0:02:33.2]} 20. h3 {[%clk 0:01:53]} 20... Rag8 {[%clk
0:02:28.7]} 21. Qd2 {[%clk 0:01:52.1]} 21... Rg3 {[%clk 0:02:23.8]} 22. Kb1
{[%clk 0:01:42.7]} 22... Rhg8 {[%clk 0:02:15.6]} 23. a3 {[%clk 0:01:37.2]} 23...
Kb8 {[%clk 0:02:11.2]} 24. h4 {[%clk 0:01:36]} 24... Qe5 {[%clk 0:01:37.3]} 25.
h5 {[%clk 0:01:18.6]} 25... Rh8 {[%clk 0:01:16.8]} 26. h6 {[%clk 0:01:11.8]}
26... Re3 {[%clk 0:01:16.2]} 27. Ka2 {[%clk 0:01:06.4]} 27... Qg5 {[%clk
0:01:05.4]} 28. Qb4 {[%clk 0:00:54.7]} 28... Ka8 {[%clk 0:00:50.9]} 29. Qb6
{[%clk 0:00:51.1]} 29... Bc8 {[%clk 0:00:43.1]} 30. Bxa6 {[%clk 0:00:23.9]}
30... Re6 {[%clk 0:00:36.8]} 31. Bxb7+ {[%clk 0:00:20.1]} 31... Bxb7 {[%clk
0:00:36.2]} 32. Qa5+ {[%clk 0:00:19.8]} 32... Ra6 {[%clk 0:00:35.2]} 33. Qc7
{[%clk 0:00:19.9]} 33... Rhxh6 {[%clk 0:00:33.4]} 34. Rxh6 {[%clk 0:00:19.1]}
34... Qxh6 {[%clk 0:00:31.1]} 35. Qxf7 {[%clk 0:00:18.5]} 35... Qc6 {[%clk
0:00:28.2]} 36. Qf8+ {[%clk 0:00:15.3]} 36... Ka7 {[%clk 0:00:28]} 37. Qf2
{[%clk 0:00:15.9]} 37... Qc5 {[%clk 0:00:26.2]} 38. Qd2 {[%clk 0:00:14.4]} 38...
Rb6 {[%clk 0:00:25.8]} 39. g4 {[%clk 0:00:14]} 39... Ba6 {[%clk 0:00:25.2]} 40.
b3 {[%clk 0:00:13.3]} 40... Rc6 {[%clk 0:00:25]} 41. Kb2 {[%clk 0:00:11.8]}
41... Bc8 {[%clk 0:00:23.7]} 42. Rxd5 {[%clk 0:00:11.3]} 42... Qe7 {[%clk
0:00:23.4]} 43. Qa5+ {[%clk 0:00:11.3]} 43... Kb8 {[%clk 0:00:22.4]} 44. Qb5+
{[%clk 0:00:10.1]} 44... Bb7 {[%clk 0:00:22.2]} 45. Qd3 {[%clk 0:00:09.7]} 45...
Qg7+ {[%clk 0:00:20.7]} 46. Qd4 {[%clk 0:00:09.9]} 46... Qg6 {[%clk 0:00:19.8]}
47. Rd8+ {[%clk 0:00:09.5]} 47... Bc8 {[%clk 0:00:19.1]} 48. Qb4+ {[%clk
0:00:09.3]} 48... Kc7 {[%clk 0:00:19]} 49. Qa5+ {[%clk 0:00:08.5]} 49... Kb7
{[%clk 0:00:19.1]} 50. Qb4+ {[%clk 0:00:08.5]} 50... Rb6 {[%clk 0:00:19]} 51.
Qe7+ {[%clk 0:00:07.4]} 51... Kb8 {[%clk 0:00:19.2]} 52. Qe5+ {[%clk 0:00:06.6]}
52... Kb7 {[%clk 0:00:18.4]} 53. Rd4 {[%clk 0:00:07]} 53... Rc6 {[%clk 0:00:18]}
54. Rb4+ {[%clk 0:00:06.6]} 54... Rb6 {[%clk 0:00:18.3]} 55. Rxb6+ {[%clk
0:00:05.6]} 55... Qxb6 {[%clk 0:00:17.9]} 56. g5 {[%clk 0:00:06.5]} 56... Qg6
{[%clk 0:00:17.3]} 57. a4 {[%clk 0:00:06.7]} 57... Bf5 {[%clk 0:00:17.2]} 58.
Qe7+ {[%clk 0:00:04.7]} 58... Kc8 {[%clk 0:00:16.6]} 59. Qf8+ {[%clk 0:00:04.4]}
59... Kb7 {[%clk 0:00:16.4]} 60. Qf6 {[%clk 0:00:04.5]} 60... Qh7 {[%clk
0:00:15.5]} 61. c4 {[%clk 0:00:02]} 61... Qh2+ {[%clk 0:00:14.4]} 62. Ka3 {[%clk
0:00:01.6]} 62... Qc2 {[%clk 0:00:14.9]} 0-1